bitfinex/quotes_SOLUSD_20240908
["timestamp","ask_amount","ask_price","bid_price","bid_amount"]
[1725780042007,45.0,129.63,129.6,9.62611464]
[1725780045737,45.0,129.63,129.62,9.62611464]
[1725780047023,45.0,129.63,129.53,21.8306]
[1725780047333,45.0,129.63,129.61,9.62611464]
[1725780048908,45.0,129.63,129.53,21.8306]
[1725780049108,45.0,129.63,129.6,9.62611464]
[1725780050102,45.0,129.63,129.54,20.0]
[1725780050304,45.0,129.63,129.6,9.62611464]
[1725780053103,45.0,129.63,129.54,20.0]
[1725780053298,45.0,129.63,129.6,9.62611464]
[1725780059409,45.0,129.63,129.62,9.62611464]
[1725780060219,45.0,129.63,129.6,9.62611464]
[1725780061735,45.0,129.63,129.58,9.62611464]
[1725780061908,45.0,129.63,129.59,20.0]
[1725780063031,45.0,129.63,129.6,9.62611464]
[1725780063236,15.5255,129.66,129.62,9.62611464]
[1725780065709,45.0,129.65,129.62,9.62611464]
[1725780069167,45.0,129.65,129.59,20.0]
[1725780069435,45.0,129.65,129.6,9.62611464]
[1725780070443,45.0,129.65,129.53,21.8306]
[1725780070444,16.3358,129.64,129.57,9.62611464]
[1725780070647,45.0,129.63,129.57,9.62611464]
[1725780071660,6.0045,129.62,129.55,9.62611464]
[1725780071943,45.0,129.61,129.5,21.8047]
[1725780072127,16.3358,129.6,129.54,9.62611464]
[1725780072328,45.0,129.59,129.54,9.62611464]
[1725780076030,45.0,129.59,129.56,9.62611464]
[1725780076250,16.3358,129.6,129.56,9.62611464]
[1725780076935,16.3358,129.6,129.5,21.8047]
[1725780077145,16.3358,129.6,129.55,9.62611464]
[1725780077641,45.0,129.59,129.55,9.62611464]
[1725780080940,45.0,129.59,129.54,9.62611464]
[1725780081350,45.0,129.59,129.51,9.62611464]
[1725780081532,22.3403,129.58,129.47,21.8047]
[1725780081739,45.0,129.57,129.51,9.62611464]
[1725780083054,23.23,129.56,129.51,9.62611464]
[1725780083252,45.0,129.55,129.51,9.62611464]
[1725780083553,45.0,129.55,129.44,21.8047]
[1725780083743,38.3222,129.54,129.47,9.62611464]
[1725780083948,45.0,129.53,129.47,9.62611464]
[1725780084136,45.0,129.53,129.49,9.62611464]
[1725780084461,51.194,129.53,129.49,9.62611464]
[1725780084842,51.194,129.53,129.47,9.62611464]
[1725780086162,74.424,129.53,129.47,9.62611464]
[1725780086664,74.424,129.53,129.41,17.1509738]
[1725780086851,74.424,129.53,129.45,9.62611464]
[1725780087158,74.424,129.53,129.47,9.62611464]
[1725780087545,74.424,129.53,129.41,17.1509738]
[1725780087754,74.424,129.53,129.47,9.62611464]
[1725780088947,6.194,129.53,129.47,9.62611464]
[1725780090379,45.0,129.52,129.47,9.62611464]
[1725780094167,45.0,129.52,129.49,9.62611464]
[1725780099474,45.0,129.52,129.47,9.62611464]
[1725780100972,15.6363,129.51,129.41,17.1509738]
[1725780101151,45.0,129.5,129.45,9.62611464]
[1725780103860,15.6363,129.51,129.47,9.62611464]
[1725780104575,15.6363,129.51,129.45,9.62611464]
[1725780104962,38.8663,129.51,129.41,0.8794738]
[1725780105154,1.8,129.55,129.41,0.8794738]
[1725780105155,23.23,129.49,129.41,0.8794738]
[1725780105356,83.5035,129.48,129.41,10.50558844]
[1725780111292,83.5035,129.48,129.41,0.8794738]
[1725780111961,60.2735,129.48,129.41,0.8794738]
[1725780112276,60.2735,129.48,129.42,9.62611464]
[1725780112277,83.5035,129.48,129.42,9.62611464]
[1725780112472,83.5035,129.48,129.41,0.8794738]
[1725780112872,83.5035,129.48,129.41,10.50558844]
[1725780113679,29.5006,129.47,129.41,10.50558844]
[1725780113890,45.0,129.46,129.41,10.50558844]
[1725780114092,16.655,129.45,129.41,10.50558844]
[1725780114271,45.0,129.44,129.41,10.50558844]
[1725780114894,45.0,129.44,129.41,0.8794738]
[1725780117766,45.0,129.44,129.42,9.62611464]
[1725780118379,16.655,129.45,129.42,9.62611464]
[1725780119775,18.455,129.49,129.44,9.62611464]
[1725780119977,16.655,129.49,129.46,9.62611464]
[1725780121283,16.655,129.49,129.48,9.62611464]
[1725780121790,16.655,129.49,129.47,9.62611464]
[1725780122866,16.655,129.49,129.45,9.62611464]
[1725780123293,45.0,129.48,129.45,9.62611464]
[1725780124991,45.0,129.48,129.47,9.62611464]
[1725780125195,16.655,129.49,129.47,9.62611464]
[1725780126678,45.0,129.48,129.47,9.62611464]
[1725780128200,45.0,129.48,129.45,9.62611464]
[1725780129474,45.0,129.48,129.43,9.62611464]
[1725780130101,45.0,129.48,129.43,24.11781054]
[1725780133701,45.0,129.48,129.45,24.11781054]
[1725780149991,45.0,129.48,129.46,9.64428262]
[1725780154590,6.2706,129.53,129.46,9.64428262]
[1725780154591,15.9212,129.52,129.46,9.64428262]
[1725780154820,15.9212,129.52,129.49,9.64428262]
[1725780155811,45.0,129.51,129.49,9.64428262]
[1725780156607,45.0,129.51,129.43,6.4453]
[1725780156808,45.0,129.51,129.47,9.64428262]
[1725780158907,45.0,129.51,129.48,20.0]
[1725780159627,45.0,129.51,129.47,20.0]
[1725780161346,45.0,129.51,129.46,9.64428262]
[1725780161529,45.0,129.51,129.47,20.0]
[1725780167528,45.0,129.51,129.48,9.64428262]
[1725780172127,15.9212,129.52,129.48,9.64428262]
[1725780172438,15.9212,129.52,129.49,20.0]
[1725780173534,45.0,129.51,129.49,20.0]
[1725780173732,15.9212,129.52,129.49,20.0]
[1725780174921,45.0,129.51,129.49,20.0]
[1725780176519,45.0,129.51,129.48,20.0]
[1725780176719,45.0,129.51,129.47,20.0]
[1725780179624,45.0,129.51,129.45,9.64428262]
[1725780179939,45.0,129.51,129.46,20.0]
[1725780180651,45.0,129.51,129.47,9.64428262]
[1725780180837,45.0,129.51,129.48,20.0]
[1725780181552,45.0,129.51,129.48,29.64428262]
[1725780182920,45.0,129.51,129.48,20.0]
[1725780183155,45.0,129.51,129.46,9.64428262]
[1725780183337,45.0,129.51,129.47,20.0]
[1725780186656,45.0,129.51,129.45,20.0]
[1725780187328,45.0,129.51,129.46,9.64428262]
[1725780187528,45.0,129.51,129.47,20.0]
[1725780191735,45.0,129.51,129.46,9.64428262]
[1725780191943,45.0,129.51,129.47,20.0]
[1725780193761,45.0,129.51,129.41,23.4372738]
[1725780193762,6.1126,129.5,129.43,9.64428262]
[1725780193932,45.0,129.49,129.44,20.0]
[1725780194847,45.0,129.49,129.43,9.64428262]
[1725780195264,45.0,129.49,129.41,23.4372738]
[1725780195448,15.865,129.48,129.43,9.64428262]
[1725780195635,15.865,129.48,129.45,9.64428262]
[1725780195636,45.0,129.47,129.45,9.64428262]
[1725780196133,45.0,129.47,129.46,20.0]
[1725780198028,45.0,129.47,129.44,9.64428262]
[1725780198236,45.0,129.47,129.45,20.0]
[1725780198555,45.0,129.47,129.42,9.64428262]
[1725780198758,45.0,129.47,129.41,0.8794738]
[1725780198759,45.0,129.47,129.41,10.52375642]
[1725780199066,45.0,129.47,129.42,20.0]
[1725780201371,15.865,129.45,129.42,20.0]
[1725780201657,45.0,129.44,129.41,0.8794738]
[1725780205637,23.23,129.43,129.41,0.8794738]
[1725780205960,45.0,129.42,129.41,0.8794738]
[1725780207538,91.0255,129.42,129.41,0.8794738]
[1725780207737,91.0255,129.42,129.33,9.64428262]
[1725780208957,67.7955,129.42,129.35,9.64428262]
[1725780209157,22.7955,129.42,129.37,9.64428262]
[1725780209459,22.7955,129.42,129.38,10.0]
[1725780210562,16.441,129.42,129.38,10.0]
[1725780211763,45.0,129.41,129.38,10.0]
[1725780219377,45.0,129.41,129.39,9.64428262]
[1725780222973,45.0,129.41,129.38,10.0]
[1725780223279,45.0,129.41,129.39,20.0]
[1725780223859,45.0,129.41,129.3,21.8291]
[1725780224072,51.2192,129.41,129.35,9.64428262]
[1725780224382,51.2192,129.41,129.36,20.0]
[1725780225358,74.4492,129.41,129.36,20.0]
[1725780226280,15.761,129.4,129.36,20.0]
[1725780226465,45.0,129.39,129.36,20.0]
[1725780227459,45.0,129.39,129.3,21.8291]
[1725780227768,45.0,129.39,129.34,9.64428262]
[1725780228784,45.0,129.39,129.35,20.0]
[1725780229954,15.761,129.4,129.36,9.64428262]
[1725780230282,15.761,129.4,129.37,20.0]
[1725780230969,15.761,129.4,129.36,9.64428262]
[1725780231177,15.761,129.4,129.37,20.0]
[1725780231384,45.0,129.39,129.37,20.0]
[1725780233965,68.23,129.39,129.33,9.64428262]
[1725780235077,45.0,129.39,129.34,20.0]
[1725780235475,68.23,129.39,129.34,20.0]
[1725780237779,45.0,129.39,129.34,20.0]
[1725780239091,23.23,129.38,129.34,20.0]
[1725780239386,45.0,129.37,129.34,20.0]
[1725780240682,45.0,129.37,129.35,9.64428262]
[1725780242281,45.0,129.37,129.36,20.0]
[1725780242486,15.761,129.4,129.36,20.0]
[1725780243759,45.0,129.39,129.36,20.0]
[1725780245084,45.0,129.39,129.38,9.64428262]
[1725780245663,45.0,129.39,129.36,29.64428262]
[1725780248290,16.042,129.44,129.38,9.64428262]
[1725780248499,16.042,129.44,129.39,20.0]
[1725780249887,45.0,129.43,129.39,20.0]
[1725780252796,16.042,129.44,129.4,9.64428262]
[1725780252975,16.042,129.44,129.41,20.0]
[1725780253988,45.0,129.43,129.41,20.0]
[1725780259787,45.0,129.43,129.38,9.64428262]
[1725780259980,45.0,129.43,129.39,20.0]
[1725780272810,45.0,129.43,129.38,9.64428262]
[1725780273022,45.0,129.43,129.39,20.0]
[1725780275816,45.0,129.43,129.38,20.0]
[1725780283518,19.00486378,129.44,129.38,20.0]
[1725780283519,17.0246,129.47,129.42,9.64428262]
[1725780283721,15.2246,129.47,129.44,9.64428262]
[1725780284426,15.2246,129.47,129.42,9.64428262]
[1725780286515,45.0,129.46,129.42,9.64428262]
[1725780293221,15.2246,129.47,129.44,9.64428262]
[1725780293525,2.98917421,129.48,129.44,9.64428262]
[1725780293717,16.1178,129.5,129.44,9.64428262]
[1725780294342,1.34603803,129.49,129.44,8.29825079]
[1725780294529,45.0,129.49,129.44,8.29825079]
[1725780296334,45.0,129.49,129.43,9.64428262]
[1725780296512,45.0,129.49,129.44,20.0]
[1725780297214,1.34608411,129.48,129.44,18.65392207]
[1725780297415,45.0,129.49,129.44,18.65392207]
[1725780298338,1.34608012,129.48,129.44,18.65392207]
[1725780300609,1.34608012,129.48,129.44,17.30766696]
[1725780300926,1.34608012,129.48,129.41,9.64428262]
[1725780301427,1.34608012,129.48,129.39,9.64428262]
[1725780302534,1.34608012,129.48,129.41,9.64428262]
[1725780303615,1.34608012,129.48,129.41,8.29797184]
[1725780306418,1.34608012,129.48,129.37,22.1008]
[1725780306614,1.34608012,129.48,129.4,8.29791034]
[1725780306850,1.34608012,129.48,129.41,20.0]
[1725780309629,1.34608012,129.48,129.41,18.65360346]
[1725780311145,16.2118,129.45,129.33,16.454]
[1725780311323,16.2118,129.43,129.32,6.062]
[1725780311523,6.5228,129.41,129.32,15.70628262]
[1725780311736,45.0,129.4,129.32,15.70628262]
[1725780311917,45.0,129.4,129.34,9.64428262]
[1725780312233,45.0,129.4,129.29,22.516]
[1725780312434,45.0,129.4,129.32,9.64428262]
[1725780312939,45.0,129.4,129.33,20.0]
[1725780314740,45.0,129.4,129.33,18.65295907]
[1725780317749,45.0,129.4,129.33,17.30597817]
[1725780318543,16.2118,129.38,129.33,17.30597817]
[1725780318730,45.0,129.37,129.33,17.30597817]
[1725780320848,16.2118,129.38,129.34,9.64428262]
[1725780322146,45.0,129.37,129.33,15.95896715]
[1725780323947,45.0,129.37,129.33,14.61190421]
[1725780326848,45.0,129.37,129.33,13.26488077]
[1725780329852,45.0,129.37,129.33,11.91785013]
[1725780332851,45.0,129.37,129.33,10.57079458]
[1725780333244,1.34705378,129.36,129.33,10.57079458]
[1725780335854,1.34705378,129.36,129.32,9.64428262]
[1725780337748,45.0,129.37,129.32,8.29699749]
[1725780337953,45.0,129.37,129.31,9.64428262]
[1725780338156,6.0317,129.36,129.31,9.64428262]
[1725780338451,45.0,129.35,129.31,9.64428262]
[1725780340752,45.0,129.35,129.31,8.2975936]
[1725780342937,45.0,129.35,129.3,9.64428262]
[1725780343134,45.0,129.35,129.31,20.0]
[1725780343859,45.0,129.35,129.31,18.6539323]
[1725780345546,45.0,129.35,129.3,9.64428262]
[1725780346940,45.0,129.35,129.3,8.29789382]
[1725780347159,6.0317,129.36,129.32,9.64428262]
[1725780348755,45.0,129.35,129.32,9.64428262]
[1725780350070,16.2118,129.38,129.34,9.64428262]
[1725780350368,16.2118,129.38,129.36,9.64428262]
[1725780361057,16.2118,129.38,129.33,20.0]
[1725780361257,45.0,129.37,129.33,20.0]
[1725780361853,45.0,129.37,129.33,9.64428262]
[1725780362275,45.0,129.37,129.33,1.54613699]
[1725780362471,45.0,129.37,129.35,9.64428262]
[1725780362685,16.2118,129.38,129.35,9.64428262]
[1725780368253,15.9579,129.45,129.37,9.64428262]
[1725780368453,15.9579,129.45,129.39,9.64428262]
[1725780368655,15.9579,129.45,129.41,9.64428262]
[1725780369470,15.9579,129.45,129.35,6.1373]
[1725780369670,15.9579,129.45,129.39,9.64428262]
[1725780370979,45.0,129.44,129.39,9.64428262]
[1725780371162,45.0,129.44,129.36,20.0]
[1725780371163,45.0,129.44,129.41,9.64428262]
[1725780373160,45.0,129.44,129.36,20.0]
[1725780373475,45.0,129.44,129.4,9.64428262]
[1725780391384,45.0,129.44,129.36,20.0]
[1725780391899,16.6033,129.41,129.34,9.64428262]
[1725780392066,45.0,129.4,129.31,22.4587]
[1725780392391,45.0,129.4,129.33,9.64428262]
[1725780398400,45.0,129.4,129.35,9.64428262]
[1725780401800,16.6033,129.41,129.35,9.64428262]
[1725780403193,45.0,129.4,129.35,9.64428262]
[1725780407608,16.6033,129.41,129.37,9.64428262]
[1725780410205,45.0,129.4,129.37,9.64428262]
[1725780424610,18.40099925,129.44,129.39,9.64428262]
[1725780424910,45.0,129.43,129.39,9.64428262]
[1725780426705,18.40099925,129.44,129.39,9.64428262]
[1725780426706,15.3611,129.44,129.39,9.64428262]
[1725780426928,15.3611,129.44,129.4,1.54543824]
[1725780427214,15.6837,129.47,129.41,9.64428262]
[1725780428911,45.0,129.46,129.41,9.64428262]
[1725780436716,10.45269738,129.45,129.34,6.5469]
[1725780436898,15.3224,129.43,129.36,9.64428262]
[1725780437423,45.0,129.42,129.36,9.64428262]
[1725780441821,45.0,129.42,129.38,9.64428262]
[1725780442430,45.0,129.42,129.38,11.1899074]
[1725780442721,45.0,129.42,129.38,9.64428262]
[1725780442924,15.3224,129.46,129.34,6.5469]
[1725780442925,15.3224,129.46,129.4,9.64428262]
[1725780443611,15.3224,129.46,129.42,9.64428262]
[1725780445134,45.0,129.45,129.42,9.64428262]
[1725780446522,15.1718,129.49,129.44,9.64428262]
[1725780447702,45.0,129.48,129.44,9.64428262]
[1725780449917,31.3109473,129.52,129.44,9.64428262]
[1725780450221,16.5569,129.53,129.46,9.64428262]
[1725780451329,19.46854878,129.53,129.46,9.64428262]
[1725780451728,19.46854878,129.53,129.48,9.64428262]
[1725780451931,16.5569,129.53,129.48,9.64428262]
[1725780452111,16.5569,129.56,129.48,9.64428262]
[1725780453717,16.5569,129.56,129.5,9.64428262]
[1725780454113,16.5569,129.56,129.48,16.27058262]
[1725780454939,45.0,129.55,129.48,16.27058262]
[1725780455636,0.15,129.5,129.48,16.27058262]
[1725780466542,0.15,129.5,129.48,6.6263]
[1725780466833,0.15,129.5,129.48,16.27058262]
[1725780467220,0.15,129.5,129.48,6.6263]
[1725780467425,0.15,129.5,129.48,16.27058262]
[1725780470636,0.15,129.5,129.49,1.54425647]
[1725780471135,0.15,129.5,129.48,16.27058262]
[1725780477245,0.15,129.5,129.48,9.64428262]
[1725780477540,0.15,129.5,129.46,15.5667]
[1725780477541,0.15,129.5,129.47,9.64428262]
[1725780480121,0.15,129.5,129.49,9.64428262]
[1725780494151,0.15,129.5,129.49,29.64428262]
[1725780497847,0.15,129.5,129.49,31.18840239]
[1725780498148,0.15,129.5,129.49,29.64428262]
[1725780503545,0.15,129.5,129.49,31.19276977]
[1725780507162,0.15,129.5,129.49,29.64428262]
[1725780518670,0.15,129.5,129.49,31.1926944]
[1725780518969,0.15,129.5,129.49,29.64428262]
[1725780520556,0.15,129.5,129.49,31.19262219]
[1725780520763,0.15,129.5,129.49,29.64428262]
[1725780520953,16.5569,129.56,129.49,29.64428262]
[1725780521266,16.5569,129.56,129.53,9.64428262]
[1725780522367,45.0,129.55,129.53,9.64428262]
[1725780523181,45.0,129.55,129.51,9.64428262]
[1725780528655,45.0,129.55,129.5,20.0]
[1725780528877,45.0,129.55,129.47,9.64428262]
[1725780529074,15.4145,129.52,129.45,1.54813754]
[1725780529280,45.0,129.51,129.44,9.64428262]
[1725780530563,15.4145,129.5,129.45,20.0]
[1725780530874,45.0,129.49,129.43,9.64428262]
[1725780531180,45.0,129.49,129.44,20.0]
[1725780531377,45.0,129.49,129.45,9.64428262]
[1725780533262,15.4145,129.5,129.45,9.64428262]
[1725780536970,15.4145,129.5,129.47,9.64428262]
[1725780539790,21.9173,129.53,129.47,9.64428262]
[1725780539989,21.9173,129.53,129.49,9.64428262]
[1725780541282,45.0,129.52,129.49,9.64428262]
[1725780544295,45.0,129.52,129.44,20.0]
[1725780544491,45.0,129.52,129.45,9.64428262]
[1725780544671,45.0,129.52,129.46,20.0]
[1725780546294,45.0,129.52,129.47,9.64428262]
[1725780556300,45.0,129.52,129.46,20.0]
[1725780556491,45.0,129.52,129.42,6.0071]
[1725780556492,45.0,129.52,129.47,9.64428262]
[1725780556990,45.0,129.52,129.48,20.0]
[1725780557375,45.0,129.52,129.49,9.64428262]
[1725780557992,21.9173,129.53,129.49,9.64428262]
[1725780558501,45.0,129.52,129.49,9.64428262]
[1725780558993,45.0,129.52,129.48,20.0]
[1725780559572,45.0,129.52,129.45,9.64428262]
[1725780559777,45.0,129.52,129.46,20.0]
[1725780560897,45.0,129.52,129.44,9.64428262]
[1725780561783,15.5347,129.51,129.44,9.64428262]
[1725780561986,45.0,129.5,129.44,9.64428262]
[1725780562193,45.0,129.5,129.45,20.0]
[1725780579308,15.5347,129.51,129.48,9.64428262]
[1725780585803,15.5347,129.51,129.47,9.64428262]
[1725780586105,15.5347,129.51,129.48,20.0]
[1725780588601,15.5347,129.51,129.47,9.64428262]
[1725780588796,15.5347,129.51,129.48,20.0]
[1725780591824,45.0,129.5,129.47,9.64428262]
[1725780591998,45.0,129.5,129.48,20.0]
[1725780592725,15.5347,129.51,129.49,9.64428262]
[1725780594728,15.5347,129.51,129.48,20.0]
[1725780594934,15.5347,129.51,129.47,9.64428262]
[1725780595224,15.5347,129.51,129.48,20.0]
[1725780600703,45.0,129.5,129.4,22.6814]
[1725780601042,6.4639,129.49,129.42,9.64428262]
[1725780601212,6.4639,129.49,129.44,9.64428262]
[1725780602007,6.4639,129.49,129.45,20.0]
[1725780602203,15.5347,129.51,129.48,9.64428262]
[1725780604139,16.1797,129.54,129.48,9.64428262]
[1725780605633,45.0,129.53,129.48,9.64428262]
[1725780609575,45.0,129.53,129.49,20.0]
[1725780610048,16.1797,129.54,129.5,9.64428262]
[1725780610241,16.1797,129.54,129.51,1.54404904]
[1725780610755,6.5656,129.58,129.45,20.0]
[1725780610756,22.2192,129.58,129.52,9.64428262]
[1725780612337,45.0,129.57,129.52,9.64428262]
[1725780612945,15.6536,129.58,129.52,9.64428262]
[1725780613139,15.6536,129.58,129.54,9.64428262]
[1725780619951,22.6702,129.61,129.54,9.64428262]
[1725780620244,45.0,129.6,129.54,9.64428262]
[1725780620638,22.6702,129.61,129.56,9.64428262]
[1725780621836,16.1046,129.65,129.58,9.64428262]
[1725780624137,45.0,129.64,129.58,9.64428262]
[1725780629164,16.1046,129.65,129.6,9.64428262]
[1725780629358,16.1046,129.65,129.61,1.54287658]
[1725780630069,16.1046,129.65,129.6,9.64428262]
[1725780630261,6.3438,129.67,129.6,9.64428262]
[1725780630440,6.3438,129.67,129.61,21.54286132]
[1725780630640,45.0,129.66,129.61,21.54286132]
[1725780632663,45.0,129.66,129.61,20.0]
[1725780632871,45.0,129.66,129.57,6.3271]
[1725780632872,45.0,129.66,129.58,9.64428262]
[1725780633054,45.0,129.66,129.59,20.0]
[1725780637083,45.0,129.66,129.6,9.64428262]
[1725780637775,45.0,129.67,129.6,9.64428262]
[1725780643892,16.1033,129.71,129.64,9.64428262]
[1725780646882,45.0,129.7,129.64,9.64428262]
[1725780647573,16.1033,129.71,129.64,9.64428262]
[1725780648486,16.1033,129.71,129.61,6.2656]
[1725780648689,25.97649388,129.71,129.63,9.64428262]
[1725780648996,16.1033,129.71,129.61,15.90988262]
[1725780649290,45.0,129.7,129.61,15.90988262]
[1725780650195,45.0,129.7,129.62,20.0]
[1725780650570,45.0,129.7,129.63,9.64428262]
[1725780654887,16.1033,129.71,129.65,9.64428262]
[1725780656100,45.0,129.7,129.65,9.64428262]
[1725780657098,45.0,129.7,129.66,20.0]
[1725780659480,45.0,129.7,129.65,29.64428262]
[1725780665380,45.0,129.7,129.65,20.0]
[1725780665581,45.0,129.7,129.63,9.64428262]
[1725780665790,45.0,129.7,129.64,20.0]
[1725780666708,61.4776,129.7,129.64,20.0]
[1725780666903,29.6559,129.69,129.58,31.68998262]
[1725780667121,45.0,129.68,129.58,31.68998262]
[1725780667301,45.0,129.68,129.6,9.64428262]
[1725780668607,45.0,129.68,129.61,20.0]
[1725780670514,15.9246,129.67,129.61,20.0]
[1725780670699,45.0,129.68,129.56,1.54681223]
[1725780670700,15.9246,129.63,129.56,1.54681223]
[1725780670902,39.1746,129.63,129.52,6.4216]
[1725780671115,39.1746,129.63,129.51,26.27018262]
[1725780671116,68.25,129.62,129.51,26.27018262]
[1725780671411,68.25,129.62,129.51,9.64428262]
[1725780672413,45.0,129.62,129.51,9.64428262]
[1725780672596,45.0,129.62,129.52,20.0]
[1725780675097,45.0,129.62,129.53,9.64428262]
[1725780675409,45.0,129.62,129.54,20.0]
[1725780675798,15.9246,129.63,129.54,20.0]
[1725780677296,45.0,129.62,129.54,20.0]
[1725780687615,45.0,129.62,129.55,20.0]
[1725780687816,45.0,129.62,129.53,20.0]
[1725780693434,15.9246,129.63,129.56,9.64428262]
[1725780693629,15.9246,129.63,129.57,21.54331725]
[1725780693828,15.9246,129.63,129.57,20.0]
[1725780694814,45.0,129.62,129.55,20.0]
[1725780695726,3.03372023,129.66,129.58,9.64428262]
[1725780696028,15.4393,129.68,129.59,20.0]
[1725780697147,45.0,129.67,129.59,20.0]
[1725780699645,45.0,129.67,129.58,20.0]
[1725780700429,45.0,129.67,129.58,29.64428262]
[1725780701332,45.0,129.67,129.58,31.18747085]
[1725780701523,45.0,129.67,129.58,29.64428262]
[1725780709332,45.0,129.67,129.58,36.01688262]
[1725780710425,45.0,129.67,129.6,9.64428262]
[1725780710629,45.0,129.67,129.61,20.0]
[1725780712525,15.4393,129.68,129.61,20.0]
[1725780712736,15.4393,129.68,129.6,9.64428262]
[1725780713036,15.4393,129.68,129.61,20.0]
[1725780713838,45.0,129.67,129.61,20.0]
[1725780719132,2.90663528,129.7,129.62,31.38308262]
[1725780719337,10.35838277,129.72,129.63,20.0]
[1725780720624,45.0,129.71,129.63,20.0]
[1725780721355,17.1472738,129.73,129.64,9.64428262]
[1725780721529,17.1472738,129.73,129.65,20.0]
[1725780723756,45.0,129.72,129.65,20.0]
[1725780729032,45.0,129.72,129.62,21.7388]
[1725780730434,45.0,129.72,129.63,20.0]
[1725780733747,23.22,129.71,129.63,20.0]
[1725780733952,45.0,129.7,129.63,20.0]
[1725780734164,45.0,129.72,129.63,20.0]
[1725780741260,17.1472738,129.73,129.63,29.64428262]
[1725780742772,45.0,129.72,129.63,29.64428262]
[1725780753862,0.8794738,129.73,129.66,22.0606]
[1725780755275,0.8794738,129.73,129.67,20.0]
[1725780755771,45.8794738,129.73,129.67,20.0]
[1725780764774,45.8794738,129.73,129.66,22.0606]
[1725780764961,45.8794738,129.73,129.67,20.0]
[1725780769087,45.8794738,129.73,129.67,29.64428262]
[1725780772709,45.8794738,129.73,129.67,31.18640924]
[1725780773375,0.8794738,129.73,129.67,31.18640924]
[1725780775578,0.8794738,129.73,129.67,29.64428262]
[1725780776090,0.8794738,129.73,129.69,9.64428262]
[1725780776276,0.8794738,129.73,129.7,20.0]
[1725780778194,0.8794738,129.73,129.72,21.4398]
[1725780778384,0.8794738,129.73,129.72,41.4398]
[1725780781376,0.8794738,129.73,129.72,42.98130183]
[1725780783394,0.8794738,129.73,129.72,41.4398]
[1725780784194,0.1794738,129.81,129.72,41.4398]
[1725780784499,0.1794738,129.81,129.74,9.64428262]
[1725780784811,0.1794738,129.81,129.75,20.0]
[1725780785177,0.1794738,129.81,129.76,6.0222]
[1725780785392,0.1794738,129.81,129.76,32.05118262]
[1725780785694,0.1794738,129.81,129.77,20.0]
[1725780786278,0.8794738,129.86,129.8,20.45908262]
[1725780786602,0.8794738,129.86,129.82,9.64428262]
[1725780787181,0.8794738,129.86,129.83,20.0]
[1725780790406,0.8794738,129.86,129.8,10.8148]
[1725780792492,0.8794738,129.86,129.81,20.0]
[1725780797087,0.8794738,129.86,129.82,9.64428262]
[1725780797397,0.8794738,129.86,129.83,20.0]
[1725780797581,0.8794738,129.86,129.84,9.64428262]
[1725780797781,0.8794738,129.86,129.85,20.0]
[1725780799018,0.8794738,129.86,129.85,20.85861511]
[1725780799213,16.2749,129.94,129.85,43.2495]
[1725780799418,16.2749,129.94,129.89,9.64428262]
[1725780800206,15.95046287,129.97,129.89,9.64428262]
[1725780800506,32.66809729,129.99,129.9,20.0]
[1725780800713,23.22,129.97,129.9,20.0]
[1725780800893,22.7769,129.96,129.9,20.0]
[1725780801217,22.7769,129.96,129.87,20.0]
[1725780801892,45.9969,129.96,129.87,20.0]